[Event "FRA-ch Teams Top 16-Bas 2022"]
[Site "Chartres"]
[Date "2022.06.17"]
[Round "9.9"]
[White "Kirk, Ezra"]
[Black "Van Foreest, Lucas"]
[Result "1/2-1/2"]
[ECO "D02"]
[WhiteElo "2446"]
[BlackElo "2572"]
[Annotator "TA"]
[PlyCount "103"]
[EventDate "2022.06.16"]
[EventType "team-tourn"]
[EventCountry "FRA"]
[SourceTitle "playchess.com"]
[Source "ChessBase"]
[SourceQuality "1"]
[TimeControl "40/5400+30:1800+30"]

{[%evp 9,103,8,27,0,9,0,9,0,0,0,0,0,0,0,0,-50,-46,-44,-48,-52,-53,-40,-32,-33,-27,-40,-11,-33,24,16,108,95,139,61,121,122,120,129,157,67,67,54,80,83,93,24,40,0,0,0,0,0,0,8,8,0,0,0,0,0,0,0,0,0,0,0,0,0,0,0,0,0,0,0,0,0,0,0,0,0,0,0,0,0,0,0,0,0,0,0,0,0,0,0,0,0]} 1. Nf3 {[%emt 0:01:29]} d5 {[%emt 0:00:19]} 2. d4 {[%emt 0:00:19]} e6 {[%emt 0:00:52]} 3. Bf4 {[%emt 0:00:58]} c5 {[%emt 0:00:20]} 4. e3 {[%emt 0:00:23]} Nc6 {[%emt 0:00:10]} 5. Nbd2 {[%emt 0:00:15]} Bd6 {[%emt 0:00:13]} 6. Bg3 {[%emt 0:14:34] D02: 1 d4 d5 2 Nf3 sidelines, including 2...Nf6 3 g3 and 2...Nf6 3 Bf4.} Nge7 {[%emt 0:00:19]} 7. c3 {[%emt 0:02:16]} cxd4 {[%emt 0:11:16]} 8. exd4 {[%emt 0:00:45]} f6 {[%emt 0:01:56] [#]} 9. b4 $146 {[%emt 0:19:59][%cal Bb2b4,Bb4b5][%mdl 32]} ({Predecessor:} 9. Bd3 O-O 10. Qe2 Qc7 11. O-O-O e5 12. dxe5 fxe5 13. Ng5 h6 14. Qh5 Bf5 15. Bxf5 Rxf5 {0-1 (22) Ruell,M (1830)-Weber,R (1964) Bad Homburg 2017}) 9... O-O {[%emt 0:03:25]} 10. b5 {[%emt 0:04:49]} Na5 {[%emt 0:00:22]} 11. Bd3 {[%emt 0:00:59]} Nf5 {[%emt 0:02:36][%cal Oe6e5]} 12. Bxf5 {[%emt 0:07:56]} ({Better is} 12. O-O $11) 12... exf5 $15 {[%emt 0:00:37]} 13. Bxd6 {[%emt 0:00:07]} Qxd6 {[%emt 0:00:16]} 14. O-O {[%emt 0:00:06]} Bd7 {[%emt 0:00:15]} 15. Nb3 {[%emt 0:02:24]} Nc4 {[%emt 0:02:58]} 16. a4 {[%emt 0:02:52]} b6 {[%emt 0:00:03]} 17. Nfd2 {[%emt 0:03:06]} Rfc8 {[%emt 0:10:03]} 18. Qf3 {[%emt 0:02:28]} a6 {[%emt 0:01:00]} (18... Nxd2 $15 19. Nxd2 a6) 19. Nxc4 $11 {[%emt 0:05:38]} Rxc4 {[%emt 0:00:41]} (19... dxc4 $11 20. Nd2 Be6) 20. a5 $16 {[%emt 0:03:20]} Rac8 {[%emt 0:29:22]} 21. Rfc1 {[%emt 0:04:06]} (21. bxa6 $16 {aiming for axb6.} Rxc3 22. Qd1) 21... Bxb5 {[%emt 0:01:02]} (21... axb5 $14 22. axb6 Qxb6) 22. axb6 {[%emt 0:00:56][%mdl 64] [#] Deflection} Qxb6 {[%emt 0:00:37]} 23. Qxd5+ {[%emt 0:00:56]} Kh8 {[%emt 0:00:06]} 24. Nc5 {[%emt 0:00:43]} (24. Qxf5 $16 h6 25. Nc5 R8xc5 26. dxc5 Rxc5 27. Qf3) 24... f4 $1 $14 {[%emt 0:01:01]} 25. Qf5 {[%emt 0:08:06] White is more active.} Qc7 {[%emt 0:00:11]} 26. h4 {[%emt 0:01:13]} h6 {[%emt 0:00:21]} 27. h5 {[%emt 0:02:04]} (27. Ra3 $16) 27... Re8 {[%emt 0:02:49]} 28. Nxa6 {[%emt 0:05:27]} (28. Re1 {looks sharper.} Rxe1+ 29. Rxe1 Rxc3 30. Qg6) 28... Bxa6 {[%emt 0:00:04] The position is equal.} 29. Rxa6 {[%emt 0:00:05]} Rxc3 {[%emt 0:00:44]} 30. Rxc3 {[%emt 0:01:09]} Qxc3 {[%emt 0:00:03]} 31. Qxf4 {[%emt 0:01:11][%mdl 4096] Endgame KQR-KQR} Qd3 {[%emt 0:00:05]} 32. Ra1 {[%emt 0:01:11]} Rd8 {[%emt 0:00:37]} 33. Re1 {[%emt 0:01:25]} Rxd4 {[%emt 0:01:11]} 34. Qb8+ {[%emt 0:00:38]} Kh7 {[%emt 0:00:41]} 35. Qb1 {[%emt 0:00:50]} Qxb1 {[%emt 0:00:09]} 36. Rxb1 $11 {[%emt 0:00:05] KR-KR} Rd5 {[%emt 0:00:07]} 37. g4 {[%emt 0:00:13]} f5 {[%emt 0:00:41]} 38. f3 {[%emt 0:01:08]} fxg4 {[%emt 0:00:08]} 39. fxg4 {[%emt 0:00:05]} Rd4 {[%emt 0:00:03]} 40. Kg2 {[%emt 0:00:11]} Rxg4+ {[%emt 0:00:11]} 41. Kh3 {[%emt 0:30:08]} Rg5 {[%emt 0:30:11]} 42. Kh4 {[%emt 0:00:04]} Kg8 {[%emt 0:00:03]} 43. Rb7 {[%emt 0:02:37]} Kf8 {[%emt 0:00:13]} 44. Ra7 {[%emt 0:01:01]} Rg1 {[%emt 0:03:00]} 45. Rb7 {[%emt 0:01:09]} Re1 {[%emt 0:01:08]} 46. Kg4 {[%emt 0:00:29]} Re4+ {[%emt 0:00:09]} 47. Kf5 {[%emt 0:00:00]} Rh4 {[%emt 0:00:00]} 48. Kg6 {[%emt 0:00:00]} Rg4+ {[%emt 0:00:00]} 49. Kh7 $1 {[%emt 0:00:00]} Rg5 {[%emt 0:00:00]} 50. Ra7 {[%emt 0:00:00]} Rxh5 {[%emt 0:00:00] [#] Strongly threatening ...Rg5.} 51. Rxg7 {[%emt 0:00:00]} Rh1 {[%emt 0:00:00]} 52. Ra7 {[%emt 0:00:00] Weighted Error Value: White=0.11 (very precise) /Black=0.12 (very precise)} 1/2-1/2

[Event "FRA-ch Teams Top 16-Bas 2022"]
[Site "Chartres"]
[Date "2022.06.17"]
[Round "9.10"]
[White "Piorun, Kacper"]
[Black "Favarel, Julien"]
[Result "1-0"]
[ECO "E71"]
[WhiteElo "2635"]
[BlackElo "2312"]
[Annotator "TA"]
[PlyCount "109"]
[EventDate "2022.06.16"]
[EventType "team-tourn"]
[EventCountry "FRA"]
[SourceTitle "playchess.com"]
[Source "ChessBase"]
[SourceQuality "1"]
[TimeControl "40/5400+30:1800+30"]

{[%evp 13,109,40,43,27,47,34,56,43,43,27,37,30,35,22,48,36,16,29,50,47,62,59,49,34,58,8,108,116,119,73,66,88,135,83,93,102,98,77,102,108,147,141,318,327,310,312,317,300,321,292,449,452,418,441,472,0,0,0,0,0,0,0,0,0,0,0,13,20,81,74,105,42,68,35,32,33,498,438,740,633,29963,29966,5608,5106,29984,29985,29985,29986,29986,29987,29988,29989,29989,29990,29990,29990,29990,5742]} 1. d4 {[%emt 0:00:03]} Nf6 {[%emt 0:00:08]} 2. c4 {[%emt 0:00:04]} g6 {[%emt 0:00:15]} 3. Nc3 {[%emt 0:00:15]} Bg7 {[%emt 0:00:05]} 4. e4 {[%emt 0:00:04]} d6 {[%emt 0:00:08]} 5. h3 {[%emt 0:00:31]} O-O {[%emt 0:00:30]} 6. Be3 {[%emt 0:00:04]} e5 {[%emt 0:01:06]} 7. d5 {[%emt 0:00:21]} Na6 {[%emt 0:00:20]} 8. g4 {[%emt 0:01:54] E71: King's Indian: 4 e4 d6 5 h3.} Nc5 {[%emt 0:00:23]} 9. f3 {[%emt 0:00:06]} a5 {[%emt 0:00:58]} 10. Nge2 {[%emt 0:00:57][%cal Bg1e2,Be2g3,Bg3h1,Bh1f2,Bf2d3][%mdl 32] White is slightly better.} c6 {[%emt 0:03:09]} 11. Ng3 {[%emt 0:08:08]} h5 {[%emt 0:05:53]} 12. Qd2 {[%emt 0:01:40]} cxd5 {[%emt 0:07:06]} 13. cxd5 {[%emt 0:00:29]} Bd7 {[%emt 0:02:50]} 14. Rg1 {[%emt 0:11:47]} h4 {[%emt 0:09:50]} (14... hxg4 15. hxg4 Nh7 16. Rh1 $16) 15. Nh1 {[%emt 0:00:05]} a4 {[%emt 0:05:32]} 16. Nf2 {[%emt 0:12:34]} Qa5 {[%emt 0:08:39]} 17. Nd3 {[%emt 0:00:31] [#]} b5 $146 {[%emt 0:02:54]} ({Predecessor:} 17... b6 18. Nxc5 bxc5 19. Bc4 Rfb8 20. Kf2 Ne8 21. Nd1 Qa7 22. Bg5 Bf6 23. Bxf6 Nxf6 {0-1 (51) Bharath,S (2479)-Demchenko,A (2654) Chess.com INT 2022}) 18. Nxc5 {[%emt 0:12:43]} dxc5 {[%emt 0:00:18]} 19. Nd1 {[%emt 0:00:05]} (19. Bxc5 b4 20. Bxf8 bxc3 21. Qxc3 Bxf8 22. Qxa5 Rxa5 $11) (19. a3 $14) 19... b4 {[%emt 0:04:32]} (19... Qxd2+ $11 {remains equal.} 20. Kxd2 Rfc8) 20. Bg5 $16 {[%emt 0:02:49]} Rfc8 {[%emt 0:05:50]} 21. Ne3 {[%emt 0:00:23]} (21. Bxh4 $6 c4 $11) (21. Rc1 $142) 21... c4 {[%emt 0:25:56]} 22. Bxc4 {[%emt 0:00:28]} Ne8 {[%emt 0:03:33]} (22... Nh7 $142 23. Bxh4 Bh6) 23. Bxh4 {[%emt 0:06:13]} (23. Rc1 $142) 23... Bh6 {[%emt 0:03:13] [#] And now ...Rxc4 would win.} 24. g5 {[%emt 0:02:07]} Bf8 {[%emt 0:00:22]} 25. Bf1 {[%emt 0:03:33]} Bc5 {[%emt 0:03:30]} 26. Nc4 $1 {[%emt 0:06:02][%csl LRa5,LRe5]} Qa7 {[%emt 0:00:39]} 27. Bf2 {[%emt 0:00:32]} Bxf2+ $2 {[%emt 0:03:47]} (27... Qb8 $16 28. Bxc5 Rxc5) 28. Qxf2 $18 {[%emt 0:00:03]} Rc5 {[%emt 0:01:24]} 29. Nxe5 {[%emt 0:06:10]} Qc7 {[%emt 0:00:51] [#] Strongly threatening ...Rc1+.} 30. Qd4 $1 {[%emt 0:01:54]} (30. Nxd7 $2 Rc1+ 31. Rxc1 Qxc1+ 32. Ke2 Rc8 $19) 30... Rc8 {[%emt 0:00:25]} 31. Bd3 {[%emt 0:02:53] Against Rc2} Bb5 {[%emt 0:00:28]} (31... Ng7 {was called for.} 32. Kf2 Nh5) 32. Bxb5 {[%emt 0:01:10]} Rxb5 {[%emt 0:00:35]} 33. Nc6 {[%emt 0:01:27]} Ng7 {[%emt 0:00:47]} 34. Na7 $2 {[%emt 0:01:47]} (34. Rc1 $18 Kh7 35. Rg4) 34... Rxd5 $1 $11 {[%emt 0:00:32]} 35. Qxd5 {[%emt 0:07:41]} Qxa7 {[%emt 0:00:05]} 36. Rg2 {[%emt 0:01:42]} (36. Rf1 $2 Qe3+ 37. Kd1 Ne6 $19) 36... Qe3+ {[%emt 0:01:11]} 37. Kf1 {[%emt 0:00:01]} Ne6 {[%emt 0:00:35]} (37... Qxf3+ 38. Kg1 Qxh3 39. Rf1 $16) 38. Qd2 {[%emt 0:07:13] Prevents Rc1+.} Qxf3+ {[%emt 0:00:05]} 39. Qf2 $1 {[%emt 0:00:13]} ({Wrong is} 39. Kg1 $2 Nf4 40. Rh2 Nxh3+ 41. Rxh3 Qxh3 $19) 39... Qxh3 {[%emt 0:00:36] ...Nxg5 is the strong threat.} 40. Kg1 {[%emt 0:00:12]} Rd8 {[%emt 0:00:55]} (40... Qd3 $11) 41. Rf1 $16 {[%emt 0:30:42]} Rd7 {[%emt 0:02:44]} 42. Qf3 {[%emt 0:00:00]} ({Better is} 42. Qg3 $16 Qxg3 43. Rxg3) 42... Qh4 {[%emt 0:06:33]} 43. Qg4 {[%emt 0:00:00]} Qh8 {[%emt 0:05:59]} 44. Rf6 {[%emt 0:00:00][%cal Of6g6] Hoping for Rxg6+!} Rd6 $2 {[%emt 0:05:27][%mdl 8192]} (44... Kg7 $1 $14) 45. Rgf2 $18 {[%emt 0:00:00]} a3 {[%emt 0:01:30]} (45... Rc6 $142 46. Rxf7 Rc1+ 47. Rf1 (47. Kg2 {leads to mate.} Qh1+ 48. Kg3 Rg1+) 47... Qd4+ 48. R7f2 Rxf1+ 49. Kxf1 Qc4+ 50. Kg2 a3 51. bxa3 bxa3) 46. bxa3 {[%emt 0:00:00]} bxa3 {[%emt 0:00:02]} 47. Rxf7 {[%emt 0:00:00]} Qa1+ {[%emt 0:00:20]} 48. Kg2 {[%emt 0:00:00] White threatens Qh3 and mate.} Rd1 {[%emt 0:01:12]} 49. Qxe6 {[%emt 0:00:00][%cal Re6e8] White mates.} Rg1+ {[%emt 0:00:07]} 50. Kh2 {[%emt 0:00:00][%cal Re6c8]} Rh1+ {[%emt 0:00:58]} 51. Kg3 {[%emt 0:00:00][%cal Re6c8]} Qg1+ {[%emt 0:09:57]} 52. Rg2 {[%emt 0:00:00][%cal Re6e8]} Qe1+ {[%emt 0:00:58]} 53. Rff2+ {[%emt 0:00:00]} Kh7 {[%emt 0:00:25]} 54. Qd7+ {[%emt 0:00:00]} Kg8 {[%emt 0:00:18]} 55. Qd2 {[%emt 0:00:00] Weighted Error Value: White=0.14 (very precise) /Black=0.58} (55. Qf7+ $142 Kh8 56. Rh2+ Rxh2 57. Qf6+ (57. Kxh2 Qg1+ 58. Kxg1 $11) 57... Kh7 58. Kxh2 Qxf2+ 59. Qxf2 Kg7 60. e5) 1-0

[Event "FRA-ch Teams Top 16-Bas 2022"]
[Site "Chartres"]
[Date "2022.06.17"]
[Round "9.12"]
[White "Flom, Gabriel"]
[Black "Domenech, Vianney"]
[Result "1-0"]
[ECO "E94"]
[WhiteElo "2442"]
[BlackElo "2266"]
[Annotator "TA"]
[PlyCount "89"]
[EventDate "2022.06.16"]
[EventType "team-tourn"]
[EventCountry "FRA"]
[SourceTitle "playchess.com"]
[Source "ChessBase"]
[SourceQuality "1"]
[TimeControl "40/5400+30:1800+30"]

{[%evp 15,89,33,27,20,31,38,60,14,0,4,125,118,117,117,116,119,115,117,110,112,119,117,106,65,79,75,95,104,112,41,41,33,37,47,44,0,0,0,83,63,175,185,170,113,125,124,115,113,320,249,364,377,386,385,368,353,416,409,808,808,785,779,957,990,1083,1068,1052,985,29985,29986,29985,29987,29992,29985,29985,29972]} 1. d4 {[%emt 0:00:02]} Nf6 {[%emt 0:00:27]} 2. c4 {[%emt 0:00:04]} g6 {[%emt 0:00:09]} 3. Nc3 {[%emt 0:00:12]} Bg7 {[%emt 0:00:06]} 4. e4 {[%emt 0:00:04]} d6 {[%emt 0:00:09]} 5. Nf3 {[%emt 0:00:05]} O-O {[%emt 0:00:27]} 6. Be2 {[%emt 0:00:03]} e5 {[%emt 0:02:52]} 7. O-O {[%emt 0:00:04]} Na6 {[%emt 0:01:46]} 8. Bg5 {[%emt 0:00:38]} h6 {[%emt 0:04:05]} 9. Be3 {[%emt 0:00:05] E94: King's Indian: Classical: 6 Be2 e5 7 0-0: Various Black 7th moves.} (9. dxe5 hxg5 10. exf6 Bxf6 $15) 9... Ng4 {[%emt 0:02:58]} 10. Bc1 {[%emt 0:00:06]} c6 {[%emt 0:06:44]} 11. h3 {[%emt 0:00:41]} (11. d5 $14) 11... exd4 $11 {[%emt 0:00:37]} 12. Nxd4 {[%emt 0:00:38] [#]} Qb6 $146 {[%emt 0:02:10]} (12... Nf6 $1 $11) ({Predecessor:} 12... Nf6 13. f3 Nh5 14. Be3 Qh4 15. f4 Bxh3 16. Bxh5 gxh5 17. Nf5 Bxf5 18. exf5 Rfe8 {½-½ (79) Drygalov,S (2473)-Belous,V (2529) Chess.com INT 2019}) 13. hxg4 {[%emt 0:03:14] Hoping for Nb3.} Qxd4 {[%emt 0:03:09]} 14. Qxd4 {[%emt 0:03:44]} Bxd4 {[%emt 0:02:57]} 15. Rd1 {[%emt 0:00:05]} (15. Bxh6 Re8 $14) 15... Be5 {[%emt 0:15:25]} 16. Bxh6 {[%emt 0:01:44]} Re8 {[%emt 0:00:01]} 17. Rac1 {[%emt 0:11:27]} Nc5 {[%emt 0:18:46]} 18. f3 {[%emt 0:04:37]} a5 {[%emt 0:02:49]} 19. Bf1 {[%emt 0:03:33]} a4 {[%emt 0:00:58]} 20. Be3 {[%emt 0:05:29]} Kf8 {[%emt 0:04:48]} 21. g5 {[%emt 0:00:48]} Ke7 {[%emt 0:04:26]} 22. f4 {[%emt 0:09:12]} (22. Rc2 $16) 22... Bxc3 $14 {[%emt 0:01:53]} 23. Bxc5 {[%emt 0:00:04]} ({Much worse is} 23. bxc3 Nxe4 24. Re1 Kf8 $11) 23... Be5 {[%emt 0:01:41]} 24. Be3 {[%emt 0:05:01]} Bxb2 {[%emt 0:00:03]} 25. Rb1 {[%emt 0:00:03]} (25. Rc2 $5 {[%cal Rc2b2]} Bg4 26. Be2 Bxe2 27. Rxe2 $14) 25... a3 {[%emt 0:02:51]} 26. Bd4 {[%emt 0:00:59]} Kd7 {[%emt 0:05:24]} (26... Kf8 $11 {keeps the balance.}) 27. e5 $1 $36 {[%emt 0:00:47][%mdl 2048] White is more active.} Ra4 {[%emt 0:07:46]} (27... Bxd4+ $14 28. Rxd4 Kd8) 28. Bxb2 $18 {[%emt 0:02:05]} axb2 {[%emt 0:00:02]} 29. Rxd6+ {[%emt 0:00:06]} (29. Rxb2 $18 Kd8 30. exd6) 29... Kc7 $16 {[%emt 0:00:04]} 30. Rxb2 {[%emt 0:00:02]} Be6 {[%emt 0:00:20]} 31. Bd3 {[%emt 0:01:19]} Rea8 $2 {[%emt 0:04:15] This costs Black the game.} (31... Re7 $16 32. g3 Re8) 32. Bxg6 $18 {[%emt 0:00:49][%cal Ob2d2] Rbd2! is the strong threat.} Rxc4 {[%emt 0:00:41]} (32... Bxc4 {is a better defense.} 33. Bf5 Rd8) 33. f5 {[%emt 0:02:03]} Rc1+ {[%emt 0:01:56] [#]} 34. Kh2 $1 {[%emt 0:00:07]} Rh8+ {[%emt 0:01:18]} 35. Kg3 {[%emt 0:00:01]} Rc3+ {[%emt 0:00:31]} 36. Kf2 {[%emt 0:00:01]} Bc4 {[%emt 0:00:36] [#]} (36... b5 $142 37. Rbd2 fxg6) 37. Bxf7 $1 {[%emt 0:00:54][%mdl 512]} Bxf7 {[%emt 0:00:01]} 38. Rh6 {[%emt 0:01:15]} Rf8 {[%emt 0:01:23]} 39. Rf6 {[%emt 0:00:24]} ({Less strong is} 39. Rh7 Kc8 $18) 39... Rc5 {[%emt 0:02:02]} 40. g6 {[%emt 0:01:03][%cal Bg5g6,Bg6g7][%mdl 32]} Rxe5 {[%emt 0:00:40]} 41. g7 {[%emt 0:30:08][%mdl 64] Deflection} Ra8 {[%emt 0:06:20]} 42. Rxf7+ {[%emt 0:00:00] White mates.} Kd6 {[%emt 0:00:02]} 43. Rf8 {[%emt 0:00:00]} Ree8 {[%emt 0:00:17]} 44. Rxe8 {[%emt 0:00:00]} Rxe8 {[%emt 0:00:04]} 45. Re2 {[%emt 0:00:00] Weighted Error Value: White=0.08 (flawless) /Black=0.60} 1-0

[Event "FRA-ch Teams Top 16-Bas 2022"]
[Site "Chartres"]
[Date "2022.06.17"]
[Round "9.13"]
[White "Louis, Thibault"]
[Black "Shirazi, Kamran"]
[Result "0-1"]
[ECO "B01"]
[WhiteElo "2154"]
[BlackElo "2313"]
[Annotator "TA"]
[PlyCount "69"]
[EventDate "2022.06.16"]
[EventType "team-tourn"]
[EventCountry "FRA"]
[SourceTitle "playchess.com"]
[Source "ChessBase"]
[SourceQuality "1"]
[TimeControl "40/5400+30:1800+30"]

{[%evp 9,69,29,77,60,50,56,68,54,65,32,37,34,56,56,93,73,77,3,4,7,6,6,6,5,6,4,35,3,10,0,27,18,7,7,12,0,111,114,280,277,334,286,277,265,415,132,133,133,116,127,123,119,190,186,209,187,206,195,208,125,338,-37]} 1. e4 {[%emt 1:31:00]} d5 {[%emt 0:03:44]} 2. exd5 {[%emt 0:00:00]} c6 {[%emt 0:00:10]} 3. dxc6 {[%emt 0:00:00]} Nxc6 {[%emt 0:00:03]} 4. Be2 {[%emt 0:00:00]} e5 {[%emt 0:00:25]} 5. d3 {[%emt 0:00:00]} f5 {[%emt 0:00:19]} (5... Qc7 $11) 6. Nf3 {[%emt 0:00:00] B01: Scandinavian Defence.} Nf6 {[%emt 0:00:59]} 7. c3 {[%emt 0:00:00]} Bd6 {[%emt 0:01:52] [#]} 8. Nbd2 $146 {[%emt 0:00:00] White is slightly better.} ({Predecessor:} 8. d4 e4 9. Ng5 Qc7 10. g3 h6 11. Nh3 g5 12. Bf1 Be6 13. Na3 Bxa3 14. bxa3 {0-1 (34) Staechelin,R (2129)-Clausen,M (2082) Basel 2011}) 8... O-O {[%emt 0:04:05]} 9. Nc4 {[%emt 0:00:00]} Bc7 {[%emt 0:01:04]} 10. d4 {[%emt 0:00:00]} e4 {[%emt 0:03:30]} 11. Nfe5 {[%emt 0:00:00]} Qe8 {[%emt 0:00:14][%cal Rc7e5]} 12. f4 {[%emt 0:00:00]} exf3 {[%emt 0:00:15]} 13. Bxf3 {[%emt 0:00:00]} (13. Nxf3 $16 {With the idea 0-0.} b5 14. Ne3) 13... Bxe5 {[%emt 0:09:26]} 14. Nxe5 {[%emt 0:00:00]} Nxe5 {[%emt 0:00:08]} 15. dxe5 {[%emt 0:00:00]} Qxe5+ {[%emt 0:00:10]} 16. Qe2 {[%emt 0:00:00]} Qc7 {[%emt 0:01:00] [#] White must now prevent ...Re8.} 17. O-O $1 {[%emt 0:00:00]} Bd7 {[%emt 0:00:56]} 18. Be3 {[%emt 0:00:00][%cal Oe3f4]} (18. Bf4 $5 {[%cal Rf4c7]} Qb6+ 19. Be3 $14) 18... Rae8 {[%emt 0:04:57] aiming for ...f4.} (18... Ng4 {looks sharper.} 19. Bxg4 fxg4 20. Qd3 Rxf1+ 21. Rxf1 Be6) 19. Qd2 {[%emt 0:00:00]} Rd8 {[%emt 0:24:32]} 20. Bd4 {[%emt 0:00:00]} (20. Bxa7 $2 b6 21. Bxb6 (21. Bd5+ $2 Kh8 $19) 21... Qxb6+ 22. Qf2 Qc7 $19) 20... Bb5 {[%emt 0:09:09]} 21. Rfe1 {[%emt 0:00:00] White wants to play Qg5.} Bc6 $1 {[%emt 0:00:24]} 22. Qf2 {[%emt 0:00:00]} b6 {[%emt 0:09:13]} (22... Bxf3 $11 {keeps the balance.} 23. gxf3 b6) 23. Bxc6 $16 {[%emt 0:00:51] This bishop pair is nice.} Ng4 $2 {[%emt 0:02:32]} (23... Qxc6 $16 {keeps fighting.} 24. Qxf5 Rde8 25. Rxe8 Nxe8) 24. Qf3 $18 {[%emt 0:05:13]} Qxh2+ {[%emt 0:06:08]} 25. Kf1 {[%emt 0:00:02] Threatens to win with Bd5+.} Qd6 {[%emt 0:00:51]} 26. Ke2 {[%emt 0:03:39]} ({Resist} 26. Bg1 $6 Ne5 27. Rxe5 (27. Bh2 Nxf3 28. Bxd6 Nd2+ 29. Kg1 Rxd6 $17) 27... Qxe5 $18) 26... Rf6 {[%emt 0:00:22]} (26... Nh2 $142 27. Qh3 Qxc6) 27. Bd5+ $2 {[%emt 0:01:35]} Qxd5 $16 {[%emt 0:01:54]} 28. Qxd5+ {[%emt 0:00:02]} Rxd5 {[%emt 0:00:14]} 29. Bxf6 {[%emt 0:00:04]} Nxf6 {[%emt 0:00:06][%mdl 4096] Endgame KRR-KRN} 30. Rad1 {[%emt 0:01:36] [#] Hoping for Rxd5.} Rb5 {[%emt 0:03:36]} (30... Ra5 $16) 31. b4 $18 {[%emt 0:00:14]} Ne4 {[%emt 0:00:50]} 32. Kd3 {[%emt 0:01:38] Kd4 is the strong threat.} Re5 {[%emt 0:03:29]} 33. Kd4 {[%emt 0:00:33]} Re7 {[%emt 0:00:03]} 34. g4 {[%emt 0:00:20]} fxg4 {[%emt 0:00:49]} 35. Rg1 $2 {[%emt 0:00:00] Weighted Error Value: White=0.23 (precise) /Black=0.42} (35. Ra1 $18) 0-1

[Event "FRA-ch Teams Top 16-Bas 2022"]
[Site "Chartres"]
[Date "2022.06.17"]
[Round "9.14"]
[White "Mekhane, Adam"]
[Black "Boukhris-Ferre, Yacine"]
[Result "1-0"]
[ECO "B12"]
[WhiteElo "2276"]
[BlackElo "2183"]
[Annotator "NA RC"]
[PlyCount "95"]
[EventDate "2022.06.16"]
[EventType "team-tourn"]
[EventCountry "FRA"]
[SourceTitle "playchess.com"]
[Source "ChessBase"]
[SourceQuality "1"]
[TimeControl "40/5400+30:1800+30"]

1. e4 {[%emt 0:00:08]} c6 {[%emt 0:00:05]} 2. d4 {[%emt 0:03:26]} d5 {[%emt 0:00:10]} 3. e5 {[%emt 0:00:13]} Bf5 {[%emt 0:00:06]} 4. g4 {[%emt 0:00:31]} Bd7 {[%emt 0:00:56]} 5. Nc3 {[%emt 0:02:16]} e6 {[%emt 0:11:46]} 6. Be3 {[%emt 0:02:19]} Qb6 {[%emt 0:01:06]} 7. Na4 {[%emt 0:13:35]} Qa5+ {[%emt 0:02:00]} 8. c3 {[%emt 0:00:07]} Na6 {[%emt 0:18:22]} 9. Bxa6 {[%emt 0:08:01]} Qxa6 {[%emt 0:00:40]} 10. Nc5 {[%emt 0:00:17]} Bxc5 {[%emt 0:03:21]} 11. dxc5 {[%emt 0:00:03]} Ne7 {[%emt 0:02:02]} 12. Qe2 {[%emt 0:17:33]} Qxe2+ {[%emt 0:04:02]} 13. Nxe2 {[%emt 0:04:41]} Ng6 {[%emt 0:04:57]} 14. Bd4 {[%emt 0:06:09]} b6 {[%emt 0:04:56]} 15. f4 {[%emt 0:03:55]} bxc5 {[%emt 0:04:50]} 16. Bxc5 {[%emt 0:00:02]} f6 {[%emt 0:00:13]} 17. Bd6 {[%emt 0:04:06]} h5 {[%emt 0:11:14]} 18. g5 {[%emt 0:00:34]} fxe5 {[%emt 0:00:47]} 19. fxe5 {[%emt 0:00:21]} c5 {[%emt 0:00:58]} 20. Bxc5 {[%emt 0:06:33]} Nxe5 {[%emt 0:00:17]} 21. O-O-O {[%emt 0:00:24]} Ng6 {[%emt 0:04:07]} 22. Rhe1 {[%emt 0:10:41]} Rc8 {[%emt 0:02:37]} 23. Ba3 {[%emt 0:00:16]} h4 {[%emt 0:03:52]} 24. Nd4 {[%emt 0:01:53]} Kf7 {[%emt 0:00:24]} 25. Nf3 {[%emt 0:03:26]} Rc4 {[%emt 0:06:16]} 26. Rd4 {[%emt 0:01:30]} Rhc8 {[%emt 0:01:21]} 27. Kd2 {[%emt 0:00:39]} Kg8 {[%emt 0:01:28]} 28. Bb4 {[%emt 0:00:56]} h3 {[%emt 0:02:41]} 29. Re3 {[%emt 0:05:41]} Rxd4+ {[%emt 0:06:12]} 30. cxd4 {[%emt 0:00:41]} Nf4 {[%emt 0:00:20]} 31. Bd6 {[%emt 0:02:18]} Ng2 {[%emt 0:00:24]} 32. Ra3 {[%emt 0:00:54]} Ra8 {[%emt 0:02:00]} 33. Rb3 {[%emt 0:00:49]} Be8 {[%emt 0:00:34]} 34. Ng1 {[%emt 0:01:24]} Kh7 {[%emt 0:01:44]} 35. Rxh3+ {[%emt 0:00:35]} Kg6 {[%emt 0:00:01]} 36. Nf3 {[%emt 0:00:15]} Kf5 {[%emt 0:00:52]} 37. Rg3 {[%emt 0:00:33]} Bh5 {[%emt 0:00:45]} 38. Be5 {[%emt 0:00:04]} g6 {[%emt 0:00:25]} 39. Ng1 {[%emt 0:01:16]} Nf4 {[%emt 0:00:33]} 40. Ke3 {[%emt 0:00:12]} Rc8 {[%emt 0:00:35]} 41. Nf3 {[%emt 0:02:38]} Bg4 {[%emt 0:02:44]} 42. Bxf4 {[%emt 0:00:56]} Rh8 {[%emt 0:00:21]} 43. h4 {[%emt 0:02:21]} a5 {[%emt 0:00:18]} 44. Be5 {[%emt 0:03:25]} Rh7 {[%emt 0:00:33]} 45. Nh2 {[%emt 0:01:13]} Rxh4 {[%emt 0:01:26]} 46. Nxg4 {[%emt 0:00:22]} Rxg4 {[%emt 0:02:00]} 47. Rf3+ {[%emt 0:00:32]} Kxg5 {[%emt 0:00:07]} 48. Bf6+ {[%emt 0:00:05]} 1-0